2CCN - Level 2 Cost Centre Name,,9CCN - Level 9 Cost Centre Name,9CCC - Level 9 Cost Centre Code,9AN - Level 9 Account Name,9AC - Level 9 Account Code,Date posted,Date of transaction,Merchant Name,Merchant City,Merchant State,Merchant Zip Code,Originating Account Name,Originating Account Number,MCC/SIC Code,MCC Description,Original Amount,Currency,Conversion Rate,Billed Amount,Debit Credit,Reference Number,Statement Cycle,Account Name
Gloucester City Council,23UE,Museum of Gloucester,MU002,General Supplies/Materials,3025,08/10/2018,05/10/2018,WH SMITH,GLOUCESTER,GBR,GL1 1NZ,REDACTED,556*********2362,5994,NEWS DEALERS AND NEWSSTANDS,7.47,Pound Sterling (826),1,7.47,Debit,2.53778E+22,02/11/2018,GLOUCESTER CC
Gloucester City Council,23UE,Museum of Gloucester,MU002,Catering Provisions,3103,08/10/2018,06/10/2018,ASDA SUPERSTORE,GLOUCESTER,GBR,GL1 1DS,REDACTED,556*********2362,5411,"GROCERY STORES, SUPERMARKETS",25.33,Pound Sterling (826),1,25.33,Debit,1.53778E+22,02/11/2018,GLOUCESTER CC
Gloucester City Council,23UE,Museum of Gloucester,MU002,General Supplies/Materials,3025,08/10/2018,06/10/2018,WH SMITH,GLOUCESTER,GBR,GL1 1NZ,REDACTED,556*********2362,5994,NEWS DEALERS AND NEWSSTANDS,7.47,Pound Sterling (826),1,7.47,Debit,9.53778E+22,02/11/2018,GLOUCESTER CC
Gloucester City Council,23UE,Museum of Gloucester,MU002,General Supplies/Materials,3025,10/10/2018,09/10/2018,THE WORKS,GLOUCESTER,,GL1 2NG,REDACTED,556*********2362,5310,DISCOUNT STORES,4,Pound Sterling (826),1,4,Debit,8.54815E+22,02/11/2018,GLOUCESTER CC
Gloucester City Council,23UE,Museum of Gloucester,MU002,General Supplies/Materials,3025,11/10/2018,10/10/2018,AMZN Mktp UK,800-279-6620,LUX,L2338,REDACTED,556*********2362,5942,BOOK STORES,47.92,Pound Sterling (826),1,47.92,Debit,5.52047E+22,02/11/2018,GLOUCESTER CC
Gloucester City Council,23UE,Museum of Gloucester,MU002,General Supplies/Materials,3025,11/10/2018,10/10/2018,WH SMITH,GLOUCESTER,GBR,GL1 1NZ,REDACTED,556*********2362,5994,NEWS DEALERS AND NEWSSTANDS,7.47,Pound Sterling (826),1,7.47,Debit,2.53778E+22,02/11/2018,GLOUCESTER CC
Gloucester City Council,23UE,Museum of Gloucester,MU002,General Supplies/Materials,3025,11/10/2018,10/10/2018,AMZN MKTP UK AMAZON.CO,AMAZON.CO.UK,LUX,,REDACTED,556*********2362,5942,BOOK STORES,17.9,Pound Sterling (826),1,17.9,Debit,8.53892E+22,02/11/2018,GLOUCESTER CC
Gloucester City Council,23UE,Museum of Gloucester,MU002,Catering Provisions,3103,11/10/2018,10/10/2018,WM MORRISONS STORE,ABBEYDALE,,GL44FF,REDACTED,556*********2362,5411,"GROCERY STORES, SUPERMARKETS",7.5,Pound Sterling (826),1,7.5,Debit,8.54815E+22,02/11/2018,GLOUCESTER CC
Gloucester City Council,23UE,Museum of Gloucester,MU002,General Supplies/Materials,3025,12/10/2018,11/10/2018,THE WORKS,GLOUCESTER,,GL1 2NG,REDACTED,556*********2362,5310,DISCOUNT STORES,15,Pound Sterling (826),1,15,Debit,8.54815E+22,02/11/2018,GLOUCESTER CC
Gloucester City Council,23UE,Gloucester Life Museum,MU005,Catering Provisions,3103,15/10/2018,13/10/2018,ASDA SUPERSTORE,GLOUCESTER,GBR,GL1 1DS,REDACTED,556*********2362,5411,"GROCERY STORES, SUPERMARKETS",24.48,Pound Sterling (826),1,24.48,Debit,1.53778E+22,02/11/2018,GLOUCESTER CC
Gloucester City Council,23UE,Museum of Gloucester,MU002,General Supplies/Materials,3025,15/10/2018,14/10/2018,Amazon.co.uk,AMAZON.CO.UK,LUX,L2338,REDACTED,556*********2362,5969,ALL OTHER DIRECT MARKETERS,17.48,Pound Sterling (826),1,17.48,Debit,5.52047E+22,02/11/2018,GLOUCESTER CC
Gloucester City Council,23UE,Gloucester Life Museum,MU005,General Supplies/Materials,3025,15/10/2018,14/10/2018,HMV RETAIL LTD,GLOUCESTER,GBR,GL1 1RW,REDACTED,556*********2362,5735,RECORD SHOPS,3.99,Pound Sterling (826),1,3.99,Debit,8.53778E+22,02/11/2018,GLOUCESTER CC
Gloucester City Council,23UE,Museum of Gloucester,MU002,General Supplies/Materials,3025,16/10/2018,14/10/2018,AMZN MKTP UK AMAZON.CO,AMAZON.CO.UK,LUX,,REDACTED,556*********2362,5942,BOOK STORES,15.48,Pound Sterling (826),1,15.48,Debit,8.53892E+22,02/11/2018,GLOUCESTER CC
Gloucester City Council,23UE,Museum of Gloucester,MU002,General Supplies/Materials,3025,22/10/2018,19/10/2018,AMZN Mktp UK*MT89L0TF4,800-279-6620,LUX,L2338,REDACTED,556*********2362,5942,BOOK STORES,48.3,Pound Sterling (826),1,48.3,Debit,5.52047E+22,02/11/2018,GLOUCESTER CC
Gloucester City Council,23UE,Gloucester Life Museum,MU005,Catering Provisions,3103,22/10/2018,19/10/2018,ASDA SUPERSTORE,GLOUCESTER,GBR,GL1 1DS,REDACTED,556*********2362,5411,"GROCERY STORES, SUPERMARKETS",83.51,Pound Sterling (826),1,83.51,Debit,4.53778E+22,02/11/2018,GLOUCESTER CC
Gloucester City Council,23UE,Museum of Gloucester,MU002,General Supplies/Materials,3025,23/10/2018,22/10/2018,AMZN Mktp UK*MT35O4E54,800-279-6620,LUX,L2338,REDACTED,556*********2362,5942,BOOK STORES,19.5,Pound Sterling (826),1,19.5,Debit,5.52047E+22,02/11/2018,GLOUCESTER CC
Gloucester City Council,23UE,Gloucester Life Museum,MU005,Catering Provisions,3103,25/10/2018,24/10/2018,ASDA SUPERSTORE,GLOUCESTER,GBR,GL1 1DS,REDACTED,556*********2362,5411,"GROCERY STORES, SUPERMARKETS",6.5,Pound Sterling (826),1,6.5,Debit,4.53778E+22,02/11/2018,GLOUCESTER CC
Gloucester City Council,23UE,Gloucester Life Museum,MU005,Catering Provisions,3103,31/10/2018,30/10/2018,ASDA SUPERSTORE,GLOUCESTER,GBR,GL1 1DS,REDACTED,556*********2362,5411,"GROCERY STORES, SUPERMARKETS",2.96,Pound Sterling (826),1,2.96,Debit,5.53778E+22,02/11/2018,GLOUCESTER CC
Gloucester City Council,23UE,Museum of Gloucester,MU002,Catering Provisions,3103,01/11/2018,31/10/2018,ASDA SUPERSTORE,GLOUCESTER,GBR,GL1 1DS,REDACTED,556*********2362,5411,"GROCERY STORES, SUPERMARKETS",6.5,Pound Sterling (826),1,6.5,Debit,6.53778E+22,02/11/2018,GLOUCESTER CC
Gloucester City Council,23UE,Managing Director & Directors,MT001,Public Transport - Staff,2402,04/10/2018,03/10/2018,TRAINLINE,LONDON,,,REDACTED,471*********7903,4112,PASSENGER RAILWAYS,97,Pound Sterling (826),1,97,Debit,7.49989E+22,02/11/2018,GLOUCESTER CC
Gloucester City Council,23UE,Members Support,DS002,Public Transport - Staff,2402,08/10/2018,05/10/2018,TRAINLINE,LONDON,,,REDACTED,471*********7903,4112,PASSENGER RAILWAYS,78.5,Pound Sterling (826),1,78.5,Debit,7.49989E+22,02/11/2018,GLOUCESTER CC
Gloucester City Council,23UE,Members Support,DS002,Public Transport - Staff,2402,11/10/2018,10/10/2018,TRAINLINE,LONDON,,,REDACTED,471*********7903,4112,PASSENGER RAILWAYS,151.7,Pound Sterling (826),1,151.7,Debit,7.49989E+22,02/11/2018,GLOUCESTER CC
Gloucester City Council,23UE,Managing Director & Directors,MT001,Public Transport - Staff,2402,11/10/2018,10/10/2018,TRAINLINE,LONDON,,,REDACTED,471*********7903,4112,PASSENGER RAILWAYS,141,Pound Sterling (826),1,141,Debit,7.49989E+22,02/11/2018,GLOUCESTER CC
Gloucester City Council,23UE,Housing Services,HS001,B&B Payments,1303,26/10/2018,25/10/2018,TRAVELODGE GB0000,THAME,,,REDACTED,471*********7903,3615,TRAVELODGE,64,Pound Sterling (826),1,64,Debit,7.48305E+22,02/11/2018,GLOUCESTER CC
Gloucester City Council,23UE,Managing Director & Directors,MT001,Public Transport - Staff,2402,19/10/2018,18/10/2018,Trainline,London,GBR,1445,REDACTED,556*********1418,4112,PASSENGER RAILWAYS,56.2,Pound Sterling (826),1,56.2,Debit,8.51301E+22,02/11/2018,GLOUCESTER CC
Gloucester City Council,23UE,Head of Regeneration & Economic Development,MT005,Conference Fees,553,22/10/2018,19/10/2018,EB *CHAMBER NETWORKING,801-413-7200,IRL,DUBLIN 8,REDACTED,556*********1418,7399,BUSINESS SERVICES NOT ELSEWHERE CLASSIFIED,18,Pound Sterling (826),1,18,Debit,1.52763E+22,02/11/2018,GLOUCESTER CC
Gloucester City Council,23UE,Head of Regeneration & Economic Development,MT005,Conference Fees,553,22/10/2018,19/10/2018,EB *CHAMBER NETWORKING,801-413-7200,IRL,DUBLIN 8,REDACTED,556*********1418,7399,BUSINESS SERVICES NOT ELSEWHERE CLASSIFIED,18,Pound Sterling (826),1,18,Debit,1.52763E+22,02/11/2018,GLOUCESTER CC
Gloucester City Council,23UE,Members Support,DS002,General Supplies/Materials,3025,29/10/2018,26/10/2018,AMZN Mktp UK*MT6211X14,800-279-6620,LUX,L2338,REDACTED,556*********1418,5942,BOOK STORES,12.69,Pound Sterling (826),1,12.69,Debit,5.52047E+22,02/11/2018,GLOUCESTER CC
Gloucester City Council,23UE,Countryside Unit,EP003,Operative Clothing Allowances,502,17/10/2018,16/10/2018,VALESPORTS.CO.UK,EVESHAM WR11,,WR11 7RE,REDACTED,556*********6734,5691,MEN'S AND WOMEN'S CLOTHING STORES,48.95,Pound Sterling (826),1,48.95,Debit,5.52033E+22,02/11/2018,GLOUCESTER CC
Gloucester City Council,23UE,Countryside Unit,EP003,General Supplies/Materials,3025,23/10/2018,22/10/2018,ALLFLEX UK GROUP L,STANLEY,GBR,DH9 7YA,REDACTED,556*********6734,5965,COMBINATION CATALOG AND RETAIL MERCHANT,10.2,Pound Sterling (826),1,10.2,Debit,4.54252E+22,02/11/2018,GLOUCESTER CC
Gloucester City Council,23UE,Countryside Unit,EP003,Operative Clothing Allowances,502,26/10/2018,23/10/2018,DARE2BE,MANCHESTER M4,GBR,M41 7RR,REDACTED,556*********6734,5941,SPORTING GOODS STORES,63.9,Pound Sterling (826),1,63.9,Debit,1.52763E+22,02/11/2018,GLOUCESTER CC
Gloucester City Council,23UE,Countryside Unit,EP003,General Supplies/Materials,3025,30/10/2018,29/10/2018,ALLFLEX UK GROUP L,STANLEY,GBR,DH9 7YA,REDACTED,556*********6734,5965,COMBINATION CATALOG AND RETAIL MERCHANT,4.2,Pound Sterling (826),1,4.2,Debit,3.54252E+22,02/11/2018,GLOUCESTER CC
Gloucester City Council,23UE,Guildhall Events,GH002,Catering Provisions,3103,05/10/2018,04/10/2018,TESCO STORES 6819,GLOUCESTER,GBR,GL1 1TP,REDACTED,556*********1155,5411,"GROCERY STORES, SUPERMARKETS",3,Pound Sterling (826),1,3,Debit,1.53778E+22,02/11/2018,GLOUCESTER CC
Gloucester City Council,23UE,Guildhall Events,GH002,Catering Provisions,3103,05/10/2018,04/10/2018,ASDA GROCERIES ONLINE,INTERNET,GBR,LS11 5AD,REDACTED,556*********1155,5411,"GROCERY STORES, SUPERMARKETS",99.99,Pound Sterling (826),1,99.99,Debit,5.53778E+22,02/11/2018,GLOUCESTER CC
Gloucester City Council,23UE,Guildhall Events,GH002,Catering Provisions,3103,05/10/2018,04/10/2018,MARKS&SPENCER PLC,GLOUCESTER,GBR,GL1 1PH,REDACTED,556*********1155,5411,"GROCERY STORES, SUPERMARKETS",17.8,Pound Sterling (826),1,17.8,Debit,4.53778E+22,02/11/2018,GLOUCESTER CC
Gloucester City Council,23UE,Guildhall Bar and Caf�,GH005,Catering Provisions,3103,08/10/2018,06/10/2018,BOOKER LIMITED GLOUCES,GLOUCESTER,GBR,GL4 3RT,REDACTED,556*********1155,5811,CATERERS,117.55,Pound Sterling (826),1,117.55,Debit,5.51842E+22,02/11/2018,GLOUCESTER CC
Gloucester City Council,23UE,Guildhall Events,GH002,Catering Provisions,3103,08/10/2018,06/10/2018,WM MORRISON STORE,575 GLOUCESTE,,GL1 4BD,REDACTED,556*********1155,5411,"GROCERY STORES, SUPERMARKETS",47.8,Pound Sterling (826),1,47.8,Debit,8.54815E+22,02/11/2018,GLOUCESTER CC
Gloucester City Council,23UE,Guildhall Events,GH002,Catering Provisions,3103,08/10/2018,06/10/2018,ASDA GROCERIES ONLINE,INTERNET,GBR,LS11 5AD,REDACTED,556*********1155,5411,"GROCERY STORES, SUPERMARKETS",67.66,Pound Sterling (826),1,67.66,Debit,2.53778E+22,02/11/2018,GLOUCESTER CC
Gloucester City Council,23UE,Guildhall Events,GH002,Catering Provisions,3103,08/10/2018,06/10/2018,ASDA GROCERIES ONLINE,INTERNET,GBR,LS11 5AD,REDACTED,556*********1155,5411,"GROCERY STORES, SUPERMARKETS",-9.98,Pound Sterling (826),1,-9.98,Credit,2.53778E+22,02/11/2018,GLOUCESTER CC
Gloucester City Council,23UE,Guildhall Bar and Caf�,GH005,Catering Provisions,3103,16/10/2018,15/10/2018,SAINSBURYS SACAT 0771,GLOUCESTER,GBR,GL1 2AG,REDACTED,556*********1155,5411,"GROCERY STORES, SUPERMARKETS",22.9,Pound Sterling (826),1,22.9,Debit,2.54252E+22,02/11/2018,GLOUCESTER CC
Gloucester City Council,23UE,Guildhall Bar and Caf�,GH005,Catering Provisions,3103,01/11/2018,31/10/2018,ICELAND,GLOUCESTER,GBR,GL1 1SA,REDACTED,556*********1155,5411,"GROCERY STORES, SUPERMARKETS",4,Pound Sterling (826),1,4,Debit,2.53778E+22,02/11/2018,GLOUCESTER CC
Gloucester City Council,23UE,Eastgate Market,MK003,Equipment and Furniture,3001,08/10/2018,06/10/2018,Amazon.co.uk,AMAZON.CO.UK,LUX,L2338,REDACTED,556*********8997,5969,ALL OTHER DIRECT MARKETERS,48.07,Pound Sterling (826),1,48.07,Debit,5.52047E+22,02/11/2018,GLOUCESTER CC
Gloucester City Council,23UE,Eastgate Market,MK003,Equipment and Furniture,3001,18/10/2018,17/10/2018,PAYPAL *PARTYKATZCO,35314369001,GBR,TW91EH,REDACTED,556*********8997,5699,MISCELLANEOUS APPAREL AND ACCESSORY STOR,79,Pound Sterling (826),1,79,Debit,8.51301E+22,02/11/2018,GLOUCESTER CC
Gloucester City Council,23UE,Eastgate Market,MK003,Equipment and Furniture,3001,18/10/2018,17/10/2018,PAYPAL *PANNUFURNIT,35314369001,GBR,TW91EH,REDACTED,556*********8997,5712,"FURNITURE, HOME FURNISHINGS AND EQUIPMENT STORES",13.98,Pound Sterling (826),1,13.98,Debit,8.51301E+22,02/11/2018,GLOUCESTER CC
Gloucester City Council,23UE,Eastgate Market,MK003,Printing External,3203,30/10/2018,29/10/2018,WWW.INSTANTPRINT.C,01709 382202,,S63 5DR,REDACTED,556*********8997,7338,QUICK-COPY AND REPRODUCTION SERVICES,31,Pound Sterling (826),1,31,Debit,8.54815E+22,02/11/2018,GLOUCESTER CC
Gloucester City Council,23UE,Shopmobility,SM001,Printing External,3203,30/10/2018,29/10/2018,WWW.INSTANTPRINT.C,01709 382202,,S63 5DR,REDACTED,556*********8997,7338,QUICK-COPY AND REPRODUCTION SERVICES,31,Pound Sterling (826),1,31,Debit,8.54815E+22,02/11/2018,GLOUCESTER CC
Gloucester City Council,23UE,Tourist Information Centre,TI002,Printing External,3203,30/10/2018,29/10/2018,WWW.INSTANTPRINT.C,01709 382202,,S63 5DR,REDACTED,556*********8997,7338,QUICK-COPY AND REPRODUCTION SERVICES,31,Pound Sterling (826),1,31,Debit,8.54815E+22,02/11/2018,GLOUCESTER CC
Gloucester City Council,23UE,Museum of Gloucester,MU002,Printing External,3203,30/10/2018,29/10/2018,WWW.INSTANTPRINT.C,01709 382202,,S63 5DR,REDACTED,556*********8997,7338,QUICK-COPY AND REPRODUCTION SERVICES,31,Pound Sterling (826),1,31,Debit,8.54815E+22,02/11/2018,GLOUCESTER CC
Gloucester City Council,23UE,Gloucester Guildhall,GH001,Equipment and Furniture,3001,30/10/2018,29/10/2018,WWW.INSTANTPRINT.C,01709 382202,,S63 5DR,REDACTED,556*********8997,7338,QUICK-COPY AND REPRODUCTION SERVICES,31,Pound Sterling (826),1,31,Debit,8.54815E+22,02/11/2018,GLOUCESTER CC
Gloucester City Council,23UE,Blackfriars,GH010,General Supplies/Materials,3025,30/10/2018,29/10/2018,WWW.INSTANTPRINT.C,01709 382202,,S63 5DR,REDACTED,556*********8997,7338,QUICK-COPY AND REPRODUCTION SERVICES,31,Pound Sterling (826),1,31,Debit,8.54815E+22,02/11/2018,GLOUCESTER CC
Gloucester City Council,23UE,Eastgate Market,MK003,Printing External,3203,02/11/2018,01/11/2018,WWW.INSTANTPRINT.C,01709 382202,,S60 1EN,REDACTED,556*********8997,7338,QUICK-COPY AND REPRODUCTION SERVICES,4.13,Pound Sterling (826),1,4.13,Debit,8.54815E+22,02/11/2018,GLOUCESTER CC
Gloucester City Council,23UE,Shopmobility,SM001,Printing External,3203,02/11/2018,01/11/2018,WWW.INSTANTPRINT.C,01709 382202,,S60 1EN,REDACTED,556*********8997,7338,QUICK-COPY AND REPRODUCTION SERVICES,4.13,Pound Sterling (826),1,4.13,Debit,8.54815E+22,02/11/2018,GLOUCESTER CC
Gloucester City Council,23UE,Tourist Information Centre,TI002,Printing External,3203,02/11/2018,01/11/2018,WWW.INSTANTPRINT.C,01709 382202,,S60 1EN,REDACTED,556*********8997,7338,QUICK-COPY AND REPRODUCTION SERVICES,4.13,Pound Sterling (826),1,4.13,Debit,8.54815E+22,02/11/2018,GLOUCESTER CC
Gloucester City Council,23UE,Museum of Gloucester,MU002,Printing External,3203,02/11/2018,01/11/2018,WWW.INSTANTPRINT.C,01709 382202,,S60 1EN,REDACTED,556*********8997,7338,QUICK-COPY AND REPRODUCTION SERVICES,4.13,Pound Sterling (826),1,4.13,Debit,8.54815E+22,02/11/2018,GLOUCESTER CC
Gloucester City Council,23UE,Gloucester Guildhall,GH001,Equipment and Furniture,3001,02/11/2018,01/11/2018,WWW.INSTANTPRINT.C,01709 382202,,S60 1EN,REDACTED,556*********8997,7338,QUICK-COPY AND REPRODUCTION SERVICES,4.14,Pound Sterling (826),1,4.14,Debit,8.54815E+22,02/11/2018,GLOUCESTER CC
Gloucester City Council,23UE,Blackfriars,GH010,General Supplies/Materials,3025,02/11/2018,01/11/2018,WWW.INSTANTPRINT.C,01709 382202,,S60 1EN,REDACTED,556*********8997,7338,QUICK-COPY AND REPRODUCTION SERVICES,4.14,Pound Sterling (826),1,4.14,Debit,8.54815E+22,02/11/2018,GLOUCESTER CC
Gloucester City Council,23UE,Docks Complex - Services,AM006,General Supplies/Materials,3025,03/10/2018,02/10/2018,B & Q 1179,GLOUCESTER,,GL12SG,REDACTED,556*********4301,5211,LUMBER AND BUILDING MATERIALS STORES,24.54,Pound Sterling (826),1,24.54,Debit,8.54815E+22,02/11/2018,GLOUCESTER CC
Gloucester City Council,23UE,Docks Complex - Services,AM006,Hospitality & Refreshments,3104,04/10/2018,03/10/2018,TESCO STORES 6819,GLOUCESTER,GBR,GL1 1TP,REDACTED,556*********4301,5411,"GROCERY STORES, SUPERMARKETS",16.62,Pound Sterling (826),1,16.62,Debit,1.53778E+22,02/11/2018,GLOUCESTER CC
Gloucester City Council,23UE,Docks Complex - Services,AM006,General Supplies/Materials,3025,04/10/2018,03/10/2018,B & Q 1179,GLOUCESTER,,GL12SG,REDACTED,556*********4301,5211,LUMBER AND BUILDING MATERIALS STORES,38.48,Pound Sterling (826),1,38.48,Debit,8.54815E+22,02/11/2018,GLOUCESTER CC
Gloucester City Council,23UE,Docks Complex - Services,AM006,General Supplies/Materials,3025,16/10/2018,15/10/2018,B & Q 1179,GLOUCESTER,,GL12SG,REDACTED,556*********4301,5211,LUMBER AND BUILDING MATERIALS STORES,20,Pound Sterling (826),1,20,Debit,8.54815E+22,02/11/2018,GLOUCESTER CC
Gloucester City Council,23UE,Docks Complex - Services,AM006,Hospitality & Refreshments,3104,22/10/2018,19/10/2018,TESCO STORES 6654,GLOUCESTER,GBR,GL3 1AB,REDACTED,556*********4301,5411,"GROCERY STORES, SUPERMARKETS",26.36,Pound Sterling (826),1,26.36,Debit,2.53778E+22,02/11/2018,GLOUCESTER CC
Gloucester City Council,23UE,Docks Complex - Services,AM006,Hospitality & Refreshments,3104,23/10/2018,22/10/2018,B&M RETAIL LTD,HS GLOUCESTER,,GL12DH,REDACTED,556*********4301,5310,DISCOUNT STORES,16.99,Pound Sterling (826),1,16.99,Debit,8.54815E+22,02/11/2018,GLOUCESTER CC
Gloucester City Council,23UE,Docks Complex - Services,AM006,Hospitality & Refreshments,3104,31/10/2018,30/10/2018,SAINSBURYS 2221,GLOUCESTER,GBR,GL2 5SA,REDACTED,556*********6128,5411,"GROCERY STORES, SUPERMARKETS",51.05,Pound Sterling (826),1,51.05,Debit,2.54252E+22,02/11/2018,GLOUCESTER CC
Gloucester City Council,23UE,Democratic Services,DS003,Equipment and Furniture,3001,04/10/2018,03/10/2018,TIMPSON GROUP PLC,MANCHESTER M2,GBR,M23 9TT,REDACTED,556*********3029,5719,MISCELLANEOUS HOUSE FURNISHING SPECIALITY STORES,28,Pound Sterling (826),1,28,Debit,1.52763E+22,02/11/2018,GLOUCESTER CC
Gloucester City Council,23UE,Members Support,DS002,Hospitality & Refreshments,3104,17/10/2018,16/10/2018,TRAVELODGE GB0000,THAME,,OX9 3AT,REDACTED,556*********3029,3615,TRAVELODGE,278,Pound Sterling (826),1,278,Debit,5.55044E+22,02/11/2018,GLOUCESTER CC
Gloucester City Council,23UE,Economic Development,ED001,General Supplies/Materials,3025,22/10/2018,19/10/2018,AMZN Mktp UK*MT8EJ3JY4,800-279-6620,LUX,L2338,REDACTED,556*********3029,5942,BOOK STORES,12.8,Pound Sterling (826),1,12.8,Debit,5.52047E+22,02/11/2018,GLOUCESTER CC
Gloucester City Council,23UE,Members Support,DS002,Mileage and Travel Allowances,2401,31/10/2018,30/10/2018,Trainline,London,GBR,1445,REDACTED,556*********3029,4112,PASSENGER RAILWAYS,28.95,Pound Sterling (826),1,28.95,Debit,8.51301E+22,02/11/2018,GLOUCESTER CC
Gloucester City Council,23UE,Members Support,DS002,Mileage and Travel Allowances,2401,31/10/2018,30/10/2018,Trainline,London,GBR,1445,REDACTED,556*********3029,4112,PASSENGER RAILWAYS,76,Pound Sterling (826),1,76,Debit,8.51301E+22,02/11/2018,GLOUCESTER CC
Gloucester City Council,23UE,Housing Services,HS001,B&B Payments,1303,03/10/2018,02/10/2018,TRAVELODGE GB0000,THAME,,OX9 3AT,REDACTED,556*********6959,3615,TRAVELODGE,160,Pound Sterling (826),1,160,Debit,5.55044E+22,02/11/2018,GLOUCESTER CC
Gloucester City Council,23UE,Housing Services,HS001,B&B Payments,1303,03/10/2018,02/10/2018,TRAVELODGE GB0000,THAME,,OX9 3AT,REDACTED,556*********6959,3615,TRAVELODGE,216,Pound Sterling (826),1,216,Debit,5.55044E+22,02/11/2018,GLOUCESTER CC
Gloucester City Council,23UE,Housing Services,HS001,B&B Payments,1303,04/10/2018,03/10/2018,TRAVELODGE GB0000,THAME,,OX9 3AT,REDACTED,556*********6959,3615,TRAVELODGE,407,Pound Sterling (826),1,407,Debit,5.55044E+22,02/11/2018,GLOUCESTER CC
Gloucester City Council,23UE,Housing Services,HS001,B&B Payments,1303,04/10/2018,03/10/2018,TRAVELODGE GB0000,THAME,,OX9 3AT,REDACTED,556*********6959,3615,TRAVELODGE,307,Pound Sterling (826),1,307,Debit,5.55044E+22,02/11/2018,GLOUCESTER CC
Gloucester City Council,23UE,Housing Services,HS001,B&B Payments,1303,04/10/2018,03/10/2018,TRAVELODGE GB0000,THAME,,OX9 3AT,REDACTED,556*********6959,3615,TRAVELODGE,291,Pound Sterling (826),1,291,Debit,5.55044E+22,02/11/2018,GLOUCESTER CC
Gloucester City Council,23UE,Housing Services,HS001,B&B Payments,1303,04/10/2018,03/10/2018,TRAVELODGE GB0000,THAME,,OX9 3AT,REDACTED,556*********6959,3615,TRAVELODGE,369,Pound Sterling (826),1,369,Debit,5.55044E+22,02/11/2018,GLOUCESTER CC
Gloucester City Council,23UE,Housing Services,HS001,B&B Payments,1303,04/10/2018,03/10/2018,TRAVELODGE GB0000,THAME,,OX9 3AT,REDACTED,556*********6959,3615,TRAVELODGE,-369,Pound Sterling (826),1,-369,Credit,5.55044E+22,02/11/2018,GLOUCESTER CC
Gloucester City Council,23UE,Housing Services,HS001,B&B Payments,1303,05/10/2018,04/10/2018,TRAVELODGE GB0000,THAME,,OX9 3AT,REDACTED,556*********6959,3615,TRAVELODGE,208,Pound Sterling (826),1,208,Debit,5.55044E+22,02/11/2018,GLOUCESTER CC
Gloucester City Council,23UE,Housing Services,HS001,B&B Payments,1303,05/10/2018,04/10/2018,TRAVELODGE GB0000,THAME,,OX9 3AT,REDACTED,556*********6959,3615,TRAVELODGE,50,Pound Sterling (826),1,50,Debit,5.55044E+22,02/11/2018,GLOUCESTER CC
Gloucester City Council,23UE,Housing Services,HS001,B&B Payments,1303,05/10/2018,04/10/2018,TRAVELODGE GB0000,THAME,,OX9 3AT,REDACTED,556*********6959,3615,TRAVELODGE,258,Pound Sterling (826),1,258,Debit,5.55044E+22,02/11/2018,GLOUCESTER CC
Gloucester City Council,23UE,Housing Services,HS001,B&B Payments,1303,08/10/2018,05/10/2018,TRAVELODGE GB0000,THAME,,OX9 3AT,REDACTED,556*********6959,3615,TRAVELODGE,53,Pound Sterling (826),1,53,Debit,5.55044E+22,02/11/2018,GLOUCESTER CC
Gloucester City Council,23UE,Housing Services,HS001,B&B Payments,1303,08/10/2018,05/10/2018,TRAVELODGE GB0000,THAME,,OX9 3AT,REDACTED,556*********6959,3615,TRAVELODGE,258,Pound Sterling (826),1,258,Debit,5.55044E+22,02/11/2018,GLOUCESTER CC
Gloucester City Council,23UE,Housing Services,HS001,B&B Payments,1303,08/10/2018,05/10/2018,TRAVELODGE GB0000,THAME,,OX9 3AT,REDACTED,556*********6959,3615,TRAVELODGE,171,Pound Sterling (826),1,171,Debit,5.55044E+22,02/11/2018,GLOUCESTER CC
Gloucester City Council,23UE,Housing Services,HS001,B&B Payments,1303,08/10/2018,06/10/2018,IBIS GLOUCESTER,GLOUCESTER,GBR,GL43DG,REDACTED,556*********6959,3533,HOTEL IBIS,199,Pound Sterling (826),1,199,Debit,5.51842E+22,02/11/2018,GLOUCESTER CC
Gloucester City Council,23UE,Housing Services,HS001,B&B Payments,1303,09/10/2018,08/10/2018,TRAVELODGE GB0000,THAME,,OX9 3AT,REDACTED,556*********6959,3615,TRAVELODGE,192,Pound Sterling (826),1,192,Debit,5.55044E+22,02/11/2018,GLOUCESTER CC
Gloucester City Council,23UE,Housing Services,HS001,B&B Payments,1303,09/10/2018,08/10/2018,TRAVELODGE GB0000,THAME,,OX9 3AT,REDACTED,556*********6959,3615,TRAVELODGE,192,Pound Sterling (826),1,192,Debit,5.55044E+22,02/11/2018,GLOUCESTER CC
Gloucester City Council,23UE,Housing Services,HS001,B&B Payments,1303,10/10/2018,08/10/2018,PREMIER INN44020525,TEWKESBURY,,GL20 8ND,REDACTED,556*********6959,3811,PREMIER INN,496,Pound Sterling (826),1,496,Debit,5.5542E+22,02/11/2018,GLOUCESTER CC
Gloucester City Council,23UE,Housing Services,HS001,B&B Payments,1303,10/10/2018,09/10/2018,TRAVELODGE GB0000,THAME,,OX9 3AT,REDACTED,556*********6959,3615,TRAVELODGE,309,Pound Sterling (826),1,309,Debit,5.55044E+22,02/11/2018,GLOUCESTER CC
Gloucester City Council,23UE,Housing Services,HS001,B&B Payments,1303,10/10/2018,09/10/2018,TRAVELODGE GB0000,THAME,,OX9 3AT,REDACTED,556*********6959,3615,TRAVELODGE,138,Pound Sterling (826),1,138,Debit,5.55044E+22,02/11/2018,GLOUCESTER CC
Gloucester City Council,23UE,Housing Services,HS001,B&B Payments,1303,10/10/2018,09/10/2018,TRAVELODGE GB0000,THAME,,OX9 3AT,REDACTED,556*********6959,3615,TRAVELODGE,234,Pound Sterling (826),1,234,Debit,5.55044E+22,02/11/2018,GLOUCESTER CC
Gloucester City Council,23UE,Housing Services,HS001,B&B Payments,1303,11/10/2018,10/10/2018,TRAVELODGE GB0000,THAME,,OX9 3AT,REDACTED,556*********6959,3615,TRAVELODGE,309,Pound Sterling (826),1,309,Debit,5.55044E+22,02/11/2018,GLOUCESTER CC
Gloucester City Council,23UE,Housing Services,HS001,B&B Payments,1303,11/10/2018,10/10/2018,TRAVELODGE GB0000,THAME,,OX9 3AT,REDACTED,556*********6959,3615,TRAVELODGE,79,Pound Sterling (826),1,79,Debit,5.55044E+22,02/11/2018,GLOUCESTER CC
Gloucester City Council,23UE,Housing Services,HS001,B&B Payments,1303,11/10/2018,10/10/2018,TRAVELODGE GB0000,THAME,,OX9 3AT,REDACTED,556*********6959,3615,TRAVELODGE,79,Pound Sterling (826),1,79,Debit,5.55044E+22,02/11/2018,GLOUCESTER CC
Gloucester City Council,23UE,Housing Services,HS001,B&B Payments,1303,11/10/2018,10/10/2018,TRAVELODGE GB0000,THAME,,OX9 3AT,REDACTED,556*********6959,3615,TRAVELODGE,50,Pound Sterling (826),1,50,Debit,5.55044E+22,02/11/2018,GLOUCESTER CC
Gloucester City Council,23UE,Housing Services,HS001,B&B Payments,1303,11/10/2018,10/10/2018,TRAVELODGE GB0000,THAME,,OX9 3AT,REDACTED,556*********6959,3615,TRAVELODGE,309,Pound Sterling (826),1,309,Debit,5.55044E+22,02/11/2018,GLOUCESTER CC
Gloucester City Council,23UE,Housing Services,HS001,B&B Payments,1303,11/10/2018,10/10/2018,HIE GLOUCESTER SOUTH,GLOUCESTER,GBR,GL2 2AB,REDACTED,556*********6959,3501,HOLIDAY INNS,565.96,Pound Sterling (826),1,565.96,Debit,5.51842E+22,02/11/2018,GLOUCESTER CC
Gloucester City Council,23UE,Housing Services,HS001,B&B Payments,1303,11/10/2018,10/10/2018,IBIS GLOUCESTER,GLOUCESTER,GBR,GL43DG,REDACTED,556*********6959,3533,HOTEL IBIS,115,Pound Sterling (826),1,115,Debit,5.51842E+22,02/11/2018,GLOUCESTER CC
Gloucester City Council,23UE,Housing Services,HS001,B&B Payments,1303,12/10/2018,10/10/2018,PREMIER INN44014635,GLOUCESTER,,GL2 9BE,REDACTED,556*********6959,3811,PREMIER INN,591.5,Pound Sterling (826),1,591.5,Debit,5.5542E+22,02/11/2018,GLOUCESTER CC
Gloucester City Council,23UE,Housing Services,HS001,B&B Payments,1303,12/10/2018,11/10/2018,TRAVELODGE GB0000,THAME,,OX9 3AT,REDACTED,556*********6959,3615,TRAVELODGE,225,Pound Sterling (826),1,225,Debit,5.55044E+22,02/11/2018,GLOUCESTER CC
Gloucester City Council,23UE,Housing Services,HS001,B&B Payments,1303,12/10/2018,11/10/2018,TRAVELODGE GB0000,THAME,,OX9 3AT,REDACTED,556*********6959,3615,TRAVELODGE,58,Pound Sterling (826),1,58,Debit,5.55044E+22,02/11/2018,GLOUCESTER CC
Gloucester City Council,23UE,Housing Services,HS001,B&B Payments,1303,12/10/2018,11/10/2018,TRAVELODGE GB0000,THAME,,OX9 3AT,REDACTED,556*********6959,3615,TRAVELODGE,58,Pound Sterling (826),1,58,Debit,5.55044E+22,02/11/2018,GLOUCESTER CC
Gloucester City Council,23UE,Housing Services,HS001,B&B Payments,1303,12/10/2018,11/10/2018,TRAVELODGE GB0000,THAME,,OX9 3AT,REDACTED,556*********6959,3615,TRAVELODGE,246,Pound Sterling (826),1,246,Debit,5.55044E+22,02/11/2018,GLOUCESTER CC
Gloucester City Council,23UE,Housing Services,HS001,B&B Payments,1303,12/10/2018,11/10/2018,TRAVELODGE GB0000,THAME,,OX9 3AT,REDACTED,556*********6959,3615,TRAVELODGE,229,Pound Sterling (826),1,229,Debit,5.55044E+22,02/11/2018,GLOUCESTER CC
Gloucester City Council,23UE,Housing Services,HS001,B&B Payments,1303,12/10/2018,11/10/2018,TRAVELODGE GB0000,THAME,,OX9 3AT,REDACTED,556*********6959,3615,TRAVELODGE,236,Pound Sterling (826),1,236,Debit,5.55044E+22,02/11/2018,GLOUCESTER CC
Gloucester City Council,23UE,Housing Services,HS001,B&B Payments,1303,15/10/2018,12/10/2018,TRAVELODGE GB0000,THAME,,OX9 3AT,REDACTED,556*********6959,3615,TRAVELODGE,229,Pound Sterling (826),1,229,Debit,5.55044E+22,02/11/2018,GLOUCESTER CC
Gloucester City Council,23UE,Housing Services,HS001,B&B Payments,1303,15/10/2018,12/10/2018,TRAVELODGE GB0000,THAME,,OX9 3AT,REDACTED,556*********6959,3615,TRAVELODGE,208,Pound Sterling (826),1,208,Debit,5.55044E+22,02/11/2018,GLOUCESTER CC
Gloucester City Council,23UE,Housing Services,HS001,B&B Payments,1303,15/10/2018,12/10/2018,TRAVELODGE GB0000,THAME,,OX9 3AT,REDACTED,556*********6959,3615,TRAVELODGE,161,Pound Sterling (826),1,161,Debit,5.55044E+22,02/11/2018,GLOUCESTER CC
Gloucester City Council,23UE,Housing Services,HS001,B&B Payments,1303,15/10/2018,12/10/2018,HIE GLOUCESTER SOUTH,GLOUCESTER,GBR,GL2 2AB,REDACTED,556*********6959,3501,HOLIDAY INNS,108.99,Pound Sterling (826),1,108.99,Debit,5.51842E+22,02/11/2018,GLOUCESTER CC
Gloucester City Council,23UE,Housing Services,HS001,B&B Payments,1303,15/10/2018,12/10/2018,PREMIER INN 44537895,GLOUCESTER,,GL1 5SF,REDACTED,556*********6959,3811,PREMIER INN,564.5,Pound Sterling (826),1,564.5,Debit,5.5542E+22,02/11/2018,GLOUCESTER CC
Gloucester City Council,23UE,Housing Services,HS001,B&B Payments,1303,15/10/2018,12/10/2018,PREMIER INN44020525,TEWKESBURY,,GL20 8ND,REDACTED,556*********6959,3811,PREMIER INN,306,Pound Sterling (826),1,306,Debit,5.5542E+22,02/11/2018,GLOUCESTER CC
Gloucester City Council,23UE,Housing Services,HS001,Mileage and Travel Allowances,2401,17/10/2018,16/10/2018,Virgin Trains,London,GBR,1445,REDACTED,556*********6959,4112,PASSENGER RAILWAYS,62.4,Pound Sterling (826),1,62.4,Debit,8.51301E+22,02/11/2018,GLOUCESTER CC
Gloucester City Council,23UE,Housing Services,HS001,B&B Payments,1303,17/10/2018,16/10/2018,TRAVELODGE GB0000,THAME,,OX9 3AT,REDACTED,556*********6959,3615,TRAVELODGE,302,Pound Sterling (826),1,302,Debit,5.55044E+22,02/11/2018,GLOUCESTER CC
Gloucester City Council,23UE,Housing Services,HS001,B&B Payments,1303,17/10/2018,16/10/2018,TRAVELODGE GB0000,THAME,,OX9 3AT,REDACTED,556*********6959,3615,TRAVELODGE,321,Pound Sterling (826),1,321,Debit,5.55044E+22,02/11/2018,GLOUCESTER CC
Gloucester City Council,23UE,Housing Services,HS001,B&B Payments,1303,17/10/2018,16/10/2018,TRAVELODGE GB0000,THAME,,OX9 3AT,REDACTED,556*********6959,3615,TRAVELODGE,50,Pound Sterling (826),1,50,Debit,5.55044E+22,02/11/2018,GLOUCESTER CC
Gloucester City Council,23UE,Housing Services,HS001,B&B Payments,1303,17/10/2018,16/10/2018,TRAVELODGE GB0843,TEWKESBURY,,GL20 8ND,REDACTED,556*********6959,3615,TRAVELODGE,139,Pound Sterling (826),1,139,Debit,5.55044E+22,02/11/2018,GLOUCESTER CC
Gloucester City Council,23UE,Housing Services,HS001,B&B Payments,1303,18/10/2018,16/10/2018,PREMIER INN 44537895,GLOUCESTER,,GL1 5SF,REDACTED,556*********6959,3811,PREMIER INN,90,Pound Sterling (826),1,90,Debit,5.5542E+22,02/11/2018,GLOUCESTER CC
Gloucester City Council,23UE,Housing Services,HS001,B&B Payments,1303,18/10/2018,17/10/2018,TRAVELODGE GB0000,THAME,,OX9 3AT,REDACTED,556*********6959,3615,TRAVELODGE,355,Pound Sterling (826),1,355,Debit,5.55044E+22,02/11/2018,GLOUCESTER CC
Gloucester City Council,23UE,Housing Services,HS001,B&B Payments,1303,18/10/2018,17/10/2018,TRAVELODGE GB0000,THAME,,OX9 3AT,REDACTED,556*********6959,3615,TRAVELODGE,371,Pound Sterling (826),1,371,Debit,5.55044E+22,02/11/2018,GLOUCESTER CC
Gloucester City Council,23UE,Housing Services,HS001,B&B Payments,1303,18/10/2018,17/10/2018,TRAVELODGE GB0000,THAME,,OX9 3AT,REDACTED,556*********6959,3615,TRAVELODGE,180,Pound Sterling (826),1,180,Debit,5.55044E+22,02/11/2018,GLOUCESTER CC
Gloucester City Council,23UE,Housing Services,HS001,B&B Payments,1303,18/10/2018,17/10/2018,TRAVELODGE GB0000,THAME,,OX9 3AT,REDACTED,556*********6959,3615,TRAVELODGE,359,Pound Sterling (826),1,359,Debit,5.55044E+22,02/11/2018,GLOUCESTER CC
Gloucester City Council,23UE,Housing Services,HS001,B&B Payments,1303,19/10/2018,18/10/2018,TRAVELODGE GB0000,THAME,,OX9 3AT,REDACTED,556*********6959,3615,TRAVELODGE,267,Pound Sterling (826),1,267,Debit,5.55044E+22,02/11/2018,GLOUCESTER CC
Gloucester City Council,23UE,Housing Services,HS001,B&B Payments,1303,19/10/2018,18/10/2018,TRAVELODGE GB0000,THAME,,OX9 3AT,REDACTED,556*********6959,3615,TRAVELODGE,267,Pound Sterling (826),1,267,Debit,5.55044E+22,02/11/2018,GLOUCESTER CC
Gloucester City Council,23UE,Housing Services,HS001,B&B Payments,1303,22/10/2018,19/10/2018,TRAVELODGE GB0000,THAME,,OX9 3AT,REDACTED,556*********6959,3615,TRAVELODGE,329,Pound Sterling (826),1,329,Debit,5.55044E+22,02/11/2018,GLOUCESTER CC
Gloucester City Council,23UE,Housing Services,HS001,B&B Payments,1303,22/10/2018,19/10/2018,TRAVELODGE GB0000,THAME,,OX9 3AT,REDACTED,556*********6959,3615,TRAVELODGE,188,Pound Sterling (826),1,188,Debit,5.55044E+22,02/11/2018,GLOUCESTER CC
Gloucester City Council,23UE,Housing Services,HS001,B&B Payments,1303,22/10/2018,19/10/2018,TRAVELODGE GB0000,THAME,,OX9 3AT,REDACTED,556*********6959,3615,TRAVELODGE,238,Pound Sterling (826),1,238,Debit,5.55044E+22,02/11/2018,GLOUCESTER CC
Gloucester City Council,23UE,Housing Services,HS001,B&B Payments,1303,22/10/2018,19/10/2018,TRAVELODGE GB0000,THAME,,OX9 3AT,REDACTED,556*********6959,3615,TRAVELODGE,319,Pound Sterling (826),1,319,Debit,5.55044E+22,02/11/2018,GLOUCESTER CC
Gloucester City Council,23UE,Housing Services,HS001,B&B Payments,1303,22/10/2018,19/10/2018,IBIS GLOUCESTER,GLOUCESTER,GBR,GL43DG,REDACTED,556*********6959,3533,HOTEL IBIS,547,Pound Sterling (826),1,547,Debit,5.51842E+22,02/11/2018,GLOUCESTER CC
Gloucester City Council,23UE,Housing Services,HS001,B&B Payments,1303,22/10/2018,19/10/2018,PREMIER INN44014635,GLOUCESTER,,GL2 9BE,REDACTED,556*********6959,3811,PREMIER INN,616,Pound Sterling (826),1,616,Debit,5.5542E+22,02/11/2018,GLOUCESTER CC
Gloucester City Council,23UE,Housing Services,HS001,B&B Payments,1303,23/10/2018,22/10/2018,TRAVELODGE GB0000,THAME,,OX9 3AT,REDACTED,556*********6959,3615,TRAVELODGE,162,Pound Sterling (826),1,162,Debit,5.55044E+22,02/11/2018,GLOUCESTER CC
Gloucester City Council,23UE,Housing Services,HS001,B&B Payments,1303,23/10/2018,22/10/2018,TRAVELODGE GB0000,THAME,,OX9 3AT,REDACTED,556*********6959,3615,TRAVELODGE,112,Pound Sterling (826),1,112,Debit,5.55044E+22,02/11/2018,GLOUCESTER CC
Gloucester City Council,23UE,Housing Services,HS001,B&B Payments,1303,23/10/2018,22/10/2018,TRAVELODGE GB0000,THAME,,OX9 3AT,REDACTED,556*********6959,3615,TRAVELODGE,229,Pound Sterling (826),1,229,Debit,5.55044E+22,02/11/2018,GLOUCESTER CC
Gloucester City Council,23UE,Housing Services,HS001,B&B Payments,1303,23/10/2018,22/10/2018,TRAVELODGE GB0000,THAME,,OX9 3AT,REDACTED,556*********6959,3615,TRAVELODGE,150,Pound Sterling (826),1,150,Debit,5.55044E+22,02/11/2018,GLOUCESTER CC
Gloucester City Council,23UE,Housing Services,HS001,B&B Payments,1303,23/10/2018,22/10/2018,TRAVELODGE GB0000,THAME,,OX9 3AT,REDACTED,556*********6959,3615,TRAVELODGE,150,Pound Sterling (826),1,150,Debit,5.55044E+22,02/11/2018,GLOUCESTER CC
Gloucester City Council,23UE,Housing Services,HS001,B&B Payments,1303,23/10/2018,22/10/2018,TRAVELODGE GB0000,THAME,,OX9 3AT,REDACTED,556*********6959,3615,TRAVELODGE,902,Pound Sterling (826),1,902,Debit,5.55044E+22,02/11/2018,GLOUCESTER CC
Gloucester City Council,23UE,Housing Services,HS001,B&B Payments,1303,24/10/2018,23/10/2018,TRAVELODGE GB0000,THAME,,OX9 3AT,REDACTED,556*********6959,3615,TRAVELODGE,154,Pound Sterling (826),1,154,Debit,5.55044E+22,02/11/2018,GLOUCESTER CC
Gloucester City Council,23UE,Housing Services,HS001,B&B Payments,1303,24/10/2018,23/10/2018,TRAVELODGE GB0000,THAME,,OX9 3AT,REDACTED,556*********6959,3615,TRAVELODGE,150,Pound Sterling (826),1,150,Debit,5.55044E+22,02/11/2018,GLOUCESTER CC
Gloucester City Council,23UE,Housing Services,HS001,B&B Payments,1303,25/10/2018,24/10/2018,TRAVELODGE GB0000,THAME,,OX9 3AT,REDACTED,556*********6959,3615,TRAVELODGE,238,Pound Sterling (826),1,238,Debit,5.55044E+22,02/11/2018,GLOUCESTER CC
Gloucester City Council,23UE,Housing Services,HS001,B&B Payments,1303,25/10/2018,24/10/2018,TRAVELODGE GB0000,THAME,,OX9 3AT,REDACTED,556*********6959,3615,TRAVELODGE,279,Pound Sterling (826),1,279,Debit,5.55044E+22,02/11/2018,GLOUCESTER CC
Gloucester City Council,23UE,Housing Services,HS001,B&B Payments,1303,25/10/2018,24/10/2018,TRAVELODGE GB0000,THAME,,OX9 3AT,REDACTED,556*********6959,3615,TRAVELODGE,79,Pound Sterling (826),1,79,Debit,5.55044E+22,02/11/2018,GLOUCESTER CC
Gloucester City Council,23UE,Housing Services,HS001,B&B Payments,1303,25/10/2018,24/10/2018,TRAVELODGE GB0000,THAME,,OX9 3AT,REDACTED,556*********6959,3615,TRAVELODGE,408,Pound Sterling (826),1,408,Debit,5.55044E+22,02/11/2018,GLOUCESTER CC
Gloucester City Council,23UE,Housing Services,HS001,B&B Payments,1303,26/10/2018,25/10/2018,TRAVELODGE GB0000,THAME,,OX9 3AT,REDACTED,556*********6959,3615,TRAVELODGE,238,Pound Sterling (826),1,238,Debit,5.55044E+22,02/11/2018,GLOUCESTER CC
Gloucester City Council,23UE,Housing Services,HS001,B&B Payments,1303,26/10/2018,25/10/2018,TRAVELODGE GB0000,THAME,,OX9 3AT,REDACTED,556*********6959,3615,TRAVELODGE,368,Pound Sterling (826),1,368,Debit,5.55044E+22,02/11/2018,GLOUCESTER CC
Gloucester City Council,23UE,Housing Services,HS001,B&B Payments,1303,26/10/2018,25/10/2018,TRAVELODGE GB0000,THAME,,OX9 3AT,REDACTED,556*********6959,3615,TRAVELODGE,343,Pound Sterling (826),1,343,Debit,5.55044E+22,02/11/2018,GLOUCESTER CC
Gloucester City Council,23UE,Housing Services,HS001,B&B Payments,1303,26/10/2018,25/10/2018,TRAVELODGE GB0000,THAME,,OX9 3AT,REDACTED,556*********6959,3615,TRAVELODGE,455,Pound Sterling (826),1,455,Debit,5.55044E+22,02/11/2018,GLOUCESTER CC
Gloucester City Council,23UE,Housing Services,HS001,B&B Payments,1303,26/10/2018,25/10/2018,TRAVELODGE GB0000,THAME,,OX9 3AT,REDACTED,556*********6959,3615,TRAVELODGE,412,Pound Sterling (826),1,412,Debit,5.55044E+22,02/11/2018,GLOUCESTER CC
Gloucester City Council,23UE,Housing Services,HS001,B&B Payments,1303,26/10/2018,25/10/2018,TRAVELODGE GB0000,THAME,,OX9 3AT,REDACTED,556*********6959,3615,TRAVELODGE,355,Pound Sterling (826),1,355,Debit,5.55044E+22,02/11/2018,GLOUCESTER CC
Gloucester City Council,23UE,Housing Services,HS001,B&B Payments,1303,26/10/2018,25/10/2018,TRAVELODGE GB0000,THAME,,OX9 3AT,REDACTED,556*********6959,3615,TRAVELODGE,434,Pound Sterling (826),1,434,Debit,5.55044E+22,02/11/2018,GLOUCESTER CC
Gloucester City Council,23UE,Housing Services,HS001,B&B Payments,1303,26/10/2018,25/10/2018,TRAVELODGE GB0000,THAME,,OX9 3AT,REDACTED,556*********6959,3615,TRAVELODGE,-267,Pound Sterling (826),1,-267,Credit,5.55044E+22,02/11/2018,GLOUCESTER CC
Gloucester City Council,23UE,Housing Services,HS001,B&B Payments,1303,29/10/2018,26/10/2018,TRAVELODGE GB0000,THAME,,OX9 3AT,REDACTED,556*********6959,3615,TRAVELODGE,181,Pound Sterling (826),1,181,Debit,5.55044E+22,02/11/2018,GLOUCESTER CC
Gloucester City Council,23UE,Housing Services,HS001,B&B Payments,1303,29/10/2018,26/10/2018,TRAVELODGE GB0000,THAME,,OX9 3AT,REDACTED,556*********6959,3615,TRAVELODGE,233,Pound Sterling (826),1,233,Debit,5.55044E+22,02/11/2018,GLOUCESTER CC
Gloucester City Council,23UE,Housing Services,HS001,B&B Payments,1303,29/10/2018,26/10/2018,TRAVELODGE GB0000,THAME,,OX9 3AT,REDACTED,556*********6959,3615,TRAVELODGE,233,Pound Sterling (826),1,233,Debit,5.55044E+22,02/11/2018,GLOUCESTER CC
Gloucester City Council,23UE,Housing Services,HS001,B&B Payments,1303,29/10/2018,26/10/2018,IBIS GLOUCESTER,GLOUCESTER,GBR,GL43DG,REDACTED,556*********6959,3533,HOTEL IBIS,486,Pound Sterling (826),1,486,Debit,5.51842E+22,02/11/2018,GLOUCESTER CC
Gloucester City Council,23UE,Housing Services,HS001,B&B Payments,1303,30/10/2018,29/10/2018,TRAVELODGE GB0000,THAME,,OX9 3AT,REDACTED,556*********6959,3615,TRAVELODGE,499,Pound Sterling (826),1,499,Debit,5.55044E+22,02/11/2018,GLOUCESTER CC
Gloucester City Council,23UE,Housing Services,HS001,B&B Payments,1303,31/10/2018,30/10/2018,TRAVELODGE GB0000,THAME,,OX9 3AT,REDACTED,556*********6959,3615,TRAVELODGE,314,Pound Sterling (826),1,314,Debit,5.55044E+22,02/11/2018,GLOUCESTER CC
Gloucester City Council,23UE,Housing Services,HS001,B&B Payments,1303,31/10/2018,30/10/2018,TRAVELODGE GB0000,THAME,,OX9 3AT,REDACTED,556*********6959,3615,TRAVELODGE,327,Pound Sterling (826),1,327,Debit,5.55044E+22,02/11/2018,GLOUCESTER CC
Gloucester City Council,23UE,Housing Services,HS001,B&B Payments,1303,31/10/2018,30/10/2018,TRAVELODGE GB0000,THAME,,OX9 3AT,REDACTED,556*********6959,3615,TRAVELODGE,154,Pound Sterling (826),1,154,Debit,5.55044E+22,02/11/2018,GLOUCESTER CC
Gloucester City Council,23UE,Housing Services,HS001,B&B Payments,1303,31/10/2018,30/10/2018,TRAVELODGE GB0000,THAME,,OX9 3AT,REDACTED,556*********6959,3615,TRAVELODGE,118,Pound Sterling (826),1,118,Debit,5.55044E+22,02/11/2018,GLOUCESTER CC
Gloucester City Council,23UE,Housing Services,HS001,B&B Payments,1303,31/10/2018,30/10/2018,TRAVELODGE GB0000,THAME,,OX9 3AT,REDACTED,556*********6959,3615,TRAVELODGE,154,Pound Sterling (826),1,154,Debit,5.55044E+22,02/11/2018,GLOUCESTER CC
Gloucester City Council,23UE,Housing Services,HS001,B&B Payments,1303,31/10/2018,30/10/2018,TRAVELODGE GB0000,THAME,,OX9 3AT,REDACTED,556*********6959,3615,TRAVELODGE,177,Pound Sterling (826),1,177,Debit,5.55044E+22,02/11/2018,GLOUCESTER CC
Gloucester City Council,23UE,Housing Services,HS001,B&B Payments,1303,31/10/2018,30/10/2018,TRAVELODGE GB0000,THAME,,OX9 3AT,REDACTED,556*********6959,3615,TRAVELODGE,154,Pound Sterling (826),1,154,Debit,5.55044E+22,02/11/2018,GLOUCESTER CC
Gloucester City Council,23UE,Housing Services,HS001,B&B Payments,1303,31/10/2018,30/10/2018,TRAVELODGE GB0000,THAME,,OX9 3AT,REDACTED,556*********6959,3615,TRAVELODGE,154,Pound Sterling (826),1,154,Debit,5.55044E+22,02/11/2018,GLOUCESTER CC
Gloucester City Council,23UE,Housing Services,HS001,B&B Payments,1303,31/10/2018,30/10/2018,TRAVELODGE GB0000,THAME,,OX9 3AT,REDACTED,556*********6959,3615,TRAVELODGE,-154,Pound Sterling (826),1,-154,Credit,5.55044E+22,02/11/2018,GLOUCESTER CC
Gloucester City Council,23UE,Housing Services,HS001,B&B Payments,1303,01/11/2018,30/10/2018,PREMIER INN44014635,GLOUCESTER,,GL2 9BE,REDACTED,556*********6959,3811,PREMIER INN,560.5,Pound Sterling (826),1,560.5,Debit,5.5542E+22,02/11/2018,GLOUCESTER CC
Gloucester City Council,23UE,Housing Services,HS001,B&B Payments,1303,01/11/2018,31/10/2018,TRAVELODGE GB0000,THAME,,OX9 3AT,REDACTED,556*********6959,3615,TRAVELODGE,-286,Pound Sterling (826),1,-286,Credit,5.55044E+22,02/11/2018,GLOUCESTER CC
Gloucester City Council,23UE,Museum of Gloucester,MU002,Advertising & Publicity,3404,03/10/2018,02/10/2018,WWW.INSTANTPRINT.C,01709 382202,,S63 5DR,REDACTED,556*********8256,7338,QUICK-COPY AND REPRODUCTION SERVICES,16.99,Pound Sterling (826),1,16.99,Debit,8.54815E+22,02/11/2018,GLOUCESTER CC
Gloucester City Council,23UE,Guildhall Events,GH002,Advertising & Publicity,3404,04/10/2018,03/10/2018,WWW.INSTANTPRINT.C,01709 382202,,S63 5DR,REDACTED,556*********8256,7338,QUICK-COPY AND REPRODUCTION SERVICES,31.99,Pound Sterling (826),1,31.99,Debit,8.54815E+22,02/11/2018,GLOUCESTER CC
Gloucester City Council,23UE,Gloucester Guildhall,GH001,Equipment and Furniture,3001,05/10/2018,04/10/2018,STAGEDEPOT.CO.UK,0117 3250336,,BS4 5QR,REDACTED,556*********8256,5251,HARDWARE STORES,60.43,Pound Sterling (826),1,60.43,Debit,8.54815E+22,02/11/2018,GLOUCESTER CC
Gloucester City Council,23UE,Gloucester Guildhall,GH001,Public Transport - Staff,2402,08/10/2018,07/10/2018,Trainline,London,GBR,1445,REDACTED,556*********8256,4112,PASSENGER RAILWAYS,83.4,Pound Sterling (826),1,83.4,Debit,8.51301E+22,02/11/2018,GLOUCESTER CC
Gloucester City Council,23UE,Museum of Gloucester,MU002,Advertising & Publicity,3404,10/10/2018,09/10/2018,WWW.INSTANTPRINT.C,01709 382202,,S63 5DR,REDACTED,556*********8256,7338,QUICK-COPY AND REPRODUCTION SERVICES,24.99,Pound Sterling (826),1,24.99,Debit,8.54815E+22,02/11/2018,GLOUCESTER CC
Gloucester City Council,23UE,Museum of Gloucester,MU002,Advertising & Publicity,3404,10/10/2018,09/10/2018,WWW.INSTANTPRINT.C,01709 382202,,S63 5DR,REDACTED,556*********8256,7338,QUICK-COPY AND REPRODUCTION SERVICES,61.99,Pound Sterling (826),1,61.99,Debit,8.54815E+22,02/11/2018,GLOUCESTER CC
Gloucester City Council,23UE,Museum of Gloucester,MU002,Advertising & Publicity,3404,10/10/2018,09/10/2018,WWW.INSTANTPRINT.C,01709 382202,,S63 5DR,REDACTED,556*********8256,7338,QUICK-COPY AND REPRODUCTION SERVICES,-24.99,Pound Sterling (826),1,-24.99,Credit,8.54815E+22,02/11/2018,GLOUCESTER CC
Gloucester City Council,23UE,Guildhall Events,GH002,Professional Advice/Consultants Fees,3952,11/10/2018,08/10/2018,MIPERMIT LTD,INTERNET,GBR,SN15 5FD,REDACTED,556*********8256,7523,AUTOMOBILE PARKING LOTS AND GARAGES,10,Pound Sterling (826),1,10,Debit,2.54252E+22,02/11/2018,GLOUCESTER CC
Gloucester City Council,23UE,Blackfriars ,GH010,Advertising & Publicity,3404,11/10/2018,10/10/2018,WWW.INSTANTPRINT.C,01709 382202,,S63 5DR,REDACTED,556*********8256,7338,QUICK-COPY AND REPRODUCTION SERVICES,362,Pound Sterling (826),1,362,Debit,8.54815E+22,02/11/2018,GLOUCESTER CC
Gloucester City Council,23UE,Blackfriars Weddings,GH011,Advertising & Publicity,3404,12/10/2018,10/10/2018,PAYPAL *HITCHED LTD,35314369001,GBR,W67BT,REDACTED,556*********8256,7299,MISCELLANEOUS PERSONAL SERVICES,59.99,Pound Sterling (826),1,59.99,Debit,8.51301E+22,02/11/2018,GLOUCESTER CC
Gloucester City Council,23UE,Gloucester Guildhall,GH001,Equipment and Furniture,3001,18/10/2018,16/10/2018,Premier Farnell,Preston,GBR,LS12 2NE,REDACTED,556*********8256,5065,ELECTRICAL PARTS AND EQUIPMENT,10.8,Pound Sterling (826),1,10.8,Debit,8.51301E+22,02/11/2018,GLOUCESTER CC
Gloucester City Council,23UE,Guildhall Events,GH002,Advertising & Publicity,3404,19/10/2018,18/10/2018,MAILCHIMP *MONTHLY,MAILCHIMP.COM,GA,30308,REDACTED,556*********8256,5968,CONTINUITY/SUBSCRIPTION MERCHANTS,15.38,Pound Sterling (826),1,15.38,Debit,5.54254E+22,02/11/2018,GLOUCESTER CC
Gloucester City Council,23UE,Guildhall Events,GH002,Advertising & Publicity,3404,19/10/2018,18/10/2018,FACEBK *6VBQPHS9X2,fb.me/ads,IRL,UNKNOWN,REDACTED,556*********8256,7311,ADVERTISING SERVICES,347.7,Pound Sterling (826),1,347.7,Debit,5.52047E+22,02/11/2018,GLOUCESTER CC
Gloucester City Council,23UE,Guildhall Events,GH002,Professional Advice/Consultants Fees,3952,25/10/2018,24/10/2018,Hotel on Booking.com,Amsterdam,NLD,1017 SG,REDACTED,556*********8256,7011,"LODGING, HOTELS, MOTELS, RESORTS",111,Pound Sterling (826),1,111,Debit,1.52657E+22,02/11/2018,GLOUCESTER CC
Gloucester City Council,23UE,Guildhall Events,GH002,Professional Advice/Consultants Fees,3952,26/10/2018,25/10/2018,Hotel on Booking.com,Amsterdam,NLD,1017 SG,REDACTED,556*********8256,7011,"LODGING, HOTELS, MOTELS, RESORTS",131,Pound Sterling (826),1,131,Debit,1.52657E+22,02/11/2018,GLOUCESTER CC
Gloucester City Council,23UE,Gloucester Guildhall,GH001,Equipment and Furniture,3001,29/10/2018,26/10/2018,AMZN Mktp UK*MT2EU2XM4,800-279-6620,LUX,L2338,REDACTED,556*********8256,5942,BOOK STORES,38.29,Pound Sterling (826),1,38.29,Debit,5.52047E+22,02/11/2018,GLOUCESTER CC
Gloucester City Council,23UE,Gloucester Guildhall,GH001,Equipment and Furniture,3001,29/10/2018,26/10/2018,AMZN Mktp UK*MT4987VP4,800-279-6620,LUX,L2338,REDACTED,556*********8256,5942,BOOK STORES,42.89,Pound Sterling (826),1,42.89,Debit,5.52047E+22,02/11/2018,GLOUCESTER CC
Gloucester City Council,23UE,Guildhall Events,GH002,Professional Advice/Consultants Fees,3952,30/10/2018,26/10/2018,MIPERMIT LTD,INTERNET,GBR,SN15 5FD,REDACTED,556*********8256,7523,AUTOMOBILE PARKING LOTS AND GARAGES,10,Pound Sterling (826),1,10,Debit,2.54252E+22,02/11/2018,GLOUCESTER CC
Gloucester City Council,23UE,Guildhall Events,GH002,Professional Advice/Consultants Fees,3952,30/10/2018,26/10/2018,MIPERMIT LTD,INTERNET,GBR,SN15 5FD,REDACTED,556*********8256,7523,AUTOMOBILE PARKING LOTS AND GARAGES,10,Pound Sterling (826),1,10,Debit,2.54252E+22,02/11/2018,GLOUCESTER CC
Gloucester City Council,23UE,Guildhall Events,GH002,Professional Advice/Consultants Fees,3952,02/11/2018,31/10/2018,MIPERMIT LTD,INTERNET,GBR,SN15 5FD,REDACTED,556*********8256,7523,AUTOMOBILE PARKING LOTS AND GARAGES,10,Pound Sterling (826),1,10,Debit,2.54252E+22,02/11/2018,GLOUCESTER CC
Gloucester City Council,23UE,Development Management,PL003,Public Transport - Staff,2402,03/10/2018,02/10/2018,GWR WEBSALES,SWINDON,,SN1 1HL,REDACTED,556*********3063,4112,PASSENGER RAILWAYS,123.5,Pound Sterling (826),1,123.5,Debit,5.55044E+22,02/11/2018,GLOUCESTER CC
Gloucester City Council,23UE,Development Management,PL003,External Training Course Fees,550,04/10/2018,02/10/2018,PREMIER INN 44033690,LONDON WATERL,,SE1 7PB,REDACTED,556*********3063,3811,PREMIER INN,201,Pound Sterling (826),1,201,Debit,5.5542E+22,02/11/2018,GLOUCESTER CC
Gloucester City Council,23UE,Planning Policy & Heritage,PL004,Public Transport - Staff,2402,05/10/2018,04/10/2018,Trainline,London,GBR,1445,REDACTED,556*********3063,4112,PASSENGER RAILWAYS,41.9,Pound Sterling (826),1,41.9,Debit,8.51301E+22,02/11/2018,GLOUCESTER CC
Gloucester City Council,23UE,Planning Policy & Heritage,PL004,Public Transport - Staff,2402,05/10/2018,04/10/2018,Trainline,London,GBR,1445,REDACTED,556*********3063,4112,PASSENGER RAILWAYS,70.2,Pound Sterling (826),1,70.2,Debit,8.51301E+22,02/11/2018,GLOUCESTER CC
Gloucester City Council,23UE,Planning Policy & Heritage,PL004,Public Transport - Staff,2402,05/10/2018,04/10/2018,Trainline,London,GBR,1445,REDACTED,556*********3063,4112,PASSENGER RAILWAYS,43.1,Pound Sterling (826),1,43.1,Debit,8.51301E+22,02/11/2018,GLOUCESTER CC
Gloucester City Council,23UE,Financial Services,FS004,External Training Course Fees,550,09/10/2018,08/10/2018,NCS*CIMA VUE EXAM,800-511-3478,GBR,WC2R 0RL,REDACTED,556*********3063,8299,SCHOOLS AND EDUCATIONAL SERVICES NOT ELSEWHERE CLASSIFIED,105,Pound Sterling (826),1,105,Debit,5.52047E+22,02/11/2018,GLOUCESTER CC
Gloucester City Council,23UE,y Centre Improvement,NE001,Public Transport - Staff,2402,09/10/2018,08/10/2018,Trainline,London,GBR,1445,REDACTED,556*********3063,4112,PASSENGER RAILWAYS,18.95,Pound Sterling (826),1,18.95,Debit,8.51301E+22,02/11/2018,GLOUCESTER CC
Gloucester City Council,23UE,Financial Services,FS004,External Training Course Fees,550,09/10/2018,08/10/2018,WWW.CIMAGLOBAL.COM,020 8849 2251,,EC2M 2RB,REDACTED,556*********3063,8220,"COLLEGES, UNIVERSITIES, PROFESSIONAL SCHOOLS AND JUNIOR COLLEGES",115,Pound Sterling (826),1,115,Debit,8.54815E+22,02/11/2018,GLOUCESTER CC
Gloucester City Council,23UE,Housing Services,HS001,Public Transport - Staff,2402,12/10/2018,11/10/2018,Trainline,London,GBR,1445,REDACTED,556*********3063,4112,PASSENGER RAILWAYS,85.5,Pound Sterling (826),1,85.5,Debit,8.51301E+22,02/11/2018,GLOUCESTER CC
Gloucester City Council,23UE,ICT Projects,XCICT,Hardware,9005,15/10/2018,12/10/2018,WWW.ORIONUKUK.BIZ,LEEDS,,LS9 0AR,REDACTED,556*********3063,5943,"STATIONERY, OFFICE AND SCHOOL SUPPLY STO",204,Pound Sterling (826),1,204,Debit,5.5542E+22,02/11/2018,GLOUCESTER CC
Gloucester City Council,23UE,Development Management,PL003,Public Transport - Staff,2402,15/10/2018,12/10/2018,NATIONAL EXPRESS LIMIT,BIRMINGHAM,,B5 6DD,REDACTED,556*********3063,4131,"BUS LINES, CHARTERS, TOUR BUSES",53,Pound Sterling (826),1,53,Debit,8.54815E+22,02/11/2018,GLOUCESTER CC
Gloucester City Council,23UE,ICT Projects,XCICT,Hardware,9005,15/10/2018,12/10/2018,RS COMPONENTS,08457 201201,,NN179RS,REDACTED,556*********3063,5065,ELECTRICAL PARTS AND EQUIPMENT,58.74,Pound Sterling (826),1,58.74,Debit,8.54815E+22,02/11/2018,GLOUCESTER CC
Gloucester City Council,23UE,Financial Services,FS004,Public Transport - Staff,2402,16/10/2018,15/10/2018,Trainline,London,GBR,1445,REDACTED,556*********3063,4112,PASSENGER RAILWAYS,-8.2,Pound Sterling (826),1,-8.2,Credit,8.51301E+22,02/11/2018,GLOUCESTER CC
Gloucester City Council,23UE,Financial Services,FS004,Public Transport - Staff,2402,17/10/2018,16/10/2018,Trainline,London,GBR,1445,REDACTED,556*********3063,4112,PASSENGER RAILWAYS,-21.6,Pound Sterling (826),1,-21.6,Credit,8.51301E+22,02/11/2018,GLOUCESTER CC
Gloucester City Council,23UE,Planning Policy & Heritage,PL004,Public Transport - Staff,2402,19/10/2018,18/10/2018,Trainline,London,GBR,1445,REDACTED,556*********3063,4112,PASSENGER RAILWAYS,70.2,Pound Sterling (826),1,70.2,Debit,8.51301E+22,02/11/2018,GLOUCESTER CC
Gloucester City Council,23UE,Financial Services,FS004,Public Transport - Staff,2402,22/10/2018,19/10/2018,GWR WEBSALES,SWINDON,,SN1 1HL,REDACTED,556*********3063,4112,PASSENGER RAILWAYS,15.3,Pound Sterling (826),1,15.3,Debit,5.55044E+22,02/11/2018,GLOUCESTER CC
Gloucester City Council,23UE,Business Transformation,BI006,ICT New Hardware,3523,22/10/2018,19/10/2018,WWW.THEBARCODEWAREHOUS,INTERNET,GBR,NG24 2DX,REDACTED,556*********3063,5722,HOUSEHOLD APPLIANCE STORES,33.59,Pound Sterling (826),1,33.59,Debit,3.54252E+22,02/11/2018,GLOUCESTER CC
Gloucester City Council,23UE,Civica Admin Charges,BI002,Professional Advice/Consultants Fees,3952,25/10/2018,24/10/2018,HMCOURTS-SERVICE.G,1452420100,,GL12ZG,REDACTED,556*********3063,9222,FINES,283.5,Pound Sterling (826),1,283.5,Debit,8.54815E+22,02/11/2018,GLOUCESTER CC
Gloucester City Council,23UE,Treasury Management,FS005,Professional Advice/Consultants Fees,3952,25/10/2018,24/10/2018,LON STCK EXC/NET,LONDON EC2N,,EC4M 7LS,REDACTED,556*********3063,7399,BUSINESS SERVICES NOT ELSEWHERE CLASSIFIED,84,Pound Sterling (826),1,84,Debit,5.55044E+22,02/11/2018,GLOUCESTER CC
Gloucester City Council,23UE,Civica Admin Charges,BI002,Professional Advice/Consultants Fees,3952,26/10/2018,25/10/2018,HMCOURTS-SERVICE.G,1452420100,,GL12ZG,REDACTED,556*********3063,9222,FINES,-3,Pound Sterling (826),1,-3,Credit,8.54815E+22,02/11/2018,GLOUCESTER CC
Gloucester City Council,23UE,Financial Services,FS004,Public Transport - Staff,2402,29/10/2018,26/10/2018,GWR WEBSALES,SWINDON,,SN1 1HL,REDACTED,556*********3063,4112,PASSENGER RAILWAYS,15.3,Pound Sterling (826),1,15.3,Debit,5.55044E+22,02/11/2018,GLOUCESTER CC
Gloucester City Council,23UE,Housing Services,HS001,B&B Payments,1303,02/11/2018,01/11/2018,TRAVELODGE GB0000,THAME,,OX9 3AT,REDACTED,556*********3063,3615,TRAVELODGE,260,Pound Sterling (826),1,260,Debit,5.55044E+22,02/11/2018,GLOUCESTER CC
Gloucester City Council,23UE,Housing Services,HS001,B&B Payments,1303,02/11/2018,01/11/2018,TRAVELODGE GB0000,THAME,,OX9 3AT,REDACTED,556*********3063,3615,TRAVELODGE,220,Pound Sterling (826),1,220,Debit,5.55044E+22,02/11/2018,GLOUCESTER CC
